bitfinex/quotes_ETHUSD_20250916
["timestamp","ask_amount","ask_price","bid_price","bid_amount"]
[1758035119226,2.76530501,4437.9,4437.8,0.1218]
[1758035119661,3.19690501,4437.9,4437.8,0.1218]
[1758035119846,3.24480501,4437.9,4437.8,0.1218]
[1758035120182,3.67640501,4437.9,4437.8,0.1218]
[1758035121969,2.76530501,4437.9,4437.8,0.1218]
[1758035122371,3.67640501,4437.9,4437.8,0.1218]
[1758035123240,3.67641981,4437.9,4437.8,0.1218]
[1758035124173,3.67561981,4437.9,4437.8,0.1218]
[1758035124676,2.76531981,4437.9,4437.8,0.1218]
[1758035125278,3.7369743,4437.9,4437.8,0.1218]
[1758035126659,3.86332781,4437.9,4437.8,0.1218]
[1758035127488,2.46390783,4437.9,4437.8,0.1218]
[1758035127675,3.83515778,4437.9,4437.8,0.1218]
[1758035127881,4.44681317,4437.9,4437.8,0.1218]
[1758035130470,3.83515778,4437.9,4437.8,0.1218]
[1758035132205,0.21058982,4437.9,4437.8,0.144]
[1758035132499,2.46399259,4438.0,4437.8,0.144]
[1758035132706,2.25331801,4437.9,4437.8,0.1218]
[1758035133010,2.54421801,4437.9,4437.8,0.1218]
[1758035133192,2.25325841,4438.1,4437.8,0.1218]
[1758035133397,2.46399986,4438.0,4437.8,0.144]
[1758035133562,3.0,4438.1,4437.8,0.144]
[1758035133762,0.002,4438.4,4437.8,0.1218]
[1758035133984,0.2909,4437.9,4437.8,0.1218]
[1758035134858,0.4607,4438.1,4437.8,0.1218]
[1758035134859,2.71392094,4438.1,4437.8,0.1218]
[1758035135065,2.25328836,4438.0,4437.8,0.1218]
[1758035135261,2.25322641,4438.1,4437.8,0.1218]
[1758035135464,4.02133037,4442.2,4437.8,0.1218]
[1758035135465,0.2108935,4438.0,4437.8,0.1218]
[1758035135661,0.21089267,4438.1,4437.9,0.0222]
[1758035135893,2.74841435,4438.4,4437.9,0.6545681]
[1758035135894,0.33742774,4438.3,4437.9,0.6545681]
[1758035136118,0.112,4438.0,4437.9,0.6545681]
[1758035137964,0.112,4438.0,4437.9,2.94978611]
[1758035138165,0.002,4438.4,4438.0,2.25324103]
[1758035138503,0.002,4438.4,4438.3,2.25311493]
[1758035138704,0.002,4438.4,4438.3,6.07623055]
[1758035138888,0.002,4438.4,4438.3,6.06331493]
[1758035139397,0.002,4438.4,4438.3,6.10521493]
[1758035139600,0.002,4438.4,4438.3,6.54686109]
[1758035139804,0.002,4438.4,4438.3,7.45757567]
[1758035140663,0.002,4438.4,4438.3,7.44367567]
[1758035140869,0.002,4438.4,4438.3,5.16256074]
[1758035141400,0.002,4438.4,4438.3,7.41567567]
[1758035141567,0.002,4438.4,4438.3,7.45757567]
[1758035142390,0.002,4438.4,4438.3,21.95757567]
[1758035144525,0.002,4438.4,4438.3,22.74957567]
[1758035145126,0.002,4438.4,4438.3,25.86157567]
[1758035146093,0.002,4438.4,4438.3,25.86237567]
[1758035148329,0.002,4438.4,4438.3,25.86137567]
[1758035148505,0.002,4438.4,4438.3,25.74937567]
[1758035149644,0.0012,4438.4,4438.3,25.74937567]
[1758035151533,0.0012,4438.4,4438.3,25.73547567]
[1758035151719,0.0012,4438.4,4438.3,21.96237567]
[1758035151926,0.0012,4438.4,4438.3,25.74937567]
[1758035152345,0.002,4439.3,4439.2,2.25265813]
[1758035152627,0.002,4439.3,4439.2,8.56365813]
[1758035152821,0.002,4439.3,4439.2,8.58585813]
[1758035153129,0.002,4439.3,4439.2,23.08585813]
[1758035154055,0.002,4439.3,4439.2,23.11385813]
[1758035154276,0.002,4439.3,4439.2,24.13881202]
[1758035154778,0.002,4439.3,4439.2,24.11081202]
[1758035154977,0.002,4439.3,4439.2,24.08861202]
[1758035155627,0.002,4439.3,4439.2,24.09161202]
[1758035156121,0.002,4439.3,4439.2,19.50961202]
[1758035156354,0.3118,4439.3,4439.2,19.51041202]
[1758035156555,0.3118,4439.3,4439.2,23.29941202]
[1758035157265,0.002,4439.3,4439.2,23.29941202]
[1758035157940,0.3118,4439.3,4439.2,16.2328]
[1758035158148,1.1992,4439.3,4439.2,5.5218]
[1758035158677,3.56380739,4439.3,4439.2,1.7328]
[1758035158877,3.56380739,4439.3,4439.2,4.8488]
[1758035159079,3.56380739,4439.3,4439.2,1.2578]
[1758035159253,4.14543521,4439.3,4439.2,5.0478]
[1758035159597,7.35554018,4439.3,4439.2,0.0008]
[1758035159742,7.69172532,4439.3,4439.2,0.0008]
[1758035160079,8.17578915,4439.3,4439.2,0.0008]
[1758035162773,8.17597975,4439.3,4439.2,0.0008]
[1758035163653,13.34649863,4439.3,4439.2,0.0008]
[1758035164562,8.17597975,4439.3,4439.2,0.0008]
[1758035165174,13.34649863,4439.3,4439.2,0.0008]
[1758035165374,14.13849863,4439.3,4439.2,0.0008]
[1758035165597,17.92749863,4439.3,4439.2,0.0008]
[1758035166095,18.41656637,4439.3,4439.2,0.0008]
[1758035166892,19.61567488,4439.3,4439.2,0.0008]
[1758035167112,18.41656637,4439.3,4439.2,0.0008]
[1758035167466,19.62784683,4439.3,4439.2,0.0008]
[1758035167864,18.10205424,4439.3,4439.2,0.0008]
[1758035168187,14.83386544,4439.3,4439.2,0.0008]
[1758035168403,18.62586544,4439.3,4439.2,0.0008]
[1758035169286,17.81871662,4439.3,4439.2,0.0008]
[1758035169499,14.02671662,4439.3,4439.2,0.0008]
[1758035169797,18.62486544,4439.3,4439.2,0.0008]
[1758035170191,17.81771662,4439.3,4439.2,0.0008]
[1758035172005,14.02671662,4439.3,4439.2,0.0008]
[1758035172305,18.4214277,4439.3,4439.2,0.0008]
[1758035172804,17.81671662,4439.3,4439.2,0.0008]
[1758035173012,14.02671662,4439.3,4439.2,0.0008]
[1758035173307,17.81671662,4439.3,4439.2,0.0008]
[1758035174575,17.81591662,4439.3,4439.2,0.0008]
[1758035174777,17.8155028,4439.3,4439.2,0.0008]
[1758035175184,14.0255028,4439.3,4439.2,0.0008]
[1758035175603,17.8135028,4439.3,4439.2,0.0008]
[1758035176108,14.0255028,4439.3,4439.2,0.0008]
[1758035176412,17.8135028,4439.3,4439.2,0.0008]
[1758035176617,18.41821388,4439.3,4439.2,0.0008]
[1758035178498,17.8135028,4439.3,4439.2,0.0008]
[1758035179100,4.17558392,4439.3,4439.2,0.0008]
[1758035179300,6.40594285,4439.3,4439.2,0.3121]
[1758035179612,9.37778526,4439.3,4439.2,0.3121]
[1758035179825,6.25171653,4439.3,4439.2,0.3121]
[1758035180012,9.54621653,4439.3,4439.2,0.0008]
[1758035180222,12.4739469,4439.3,4439.2,0.0008]
[1758035180396,12.2639967,4439.3,4439.2,0.0008]
[1758035181026,12.47398097,4439.3,4439.2,0.0008]
[1758035181604,12.04578097,4439.3,4439.2,0.0008]
[1758035182010,8.68612896,4439.3,4439.2,0.0008]
[1758035182209,12.47712896,4439.3,4439.2,0.0008]
[1758035183194,12.96111834,4439.3,4439.2,0.0008]
[1758035183401,13.75311834,4439.3,4439.2,0.0008]
[1758035184120,14.35832819,4439.3,4439.2,0.0008]
[1758035184300,13.75326622,4439.3,4439.2,0.0008]
[1758035185202,18.9237851,4439.3,4439.2,0.0008]
[1758035185535,14.84360853,4439.3,4439.2,0.0008]
[1758035185832,19.55323891,4439.3,4439.2,0.0008]
[1758035186332,18.94751548,4439.3,4439.2,0.0008]
[1758035186534,19.7546643,4439.3,4439.2,0.0008]
[1758035187227,18.94751548,4439.3,4439.2,0.0008]
[1758035187431,19.75645432,4439.3,4439.2,0.0008]
[1758035188242,18.94751548,4439.3,4439.2,0.0008]
[1758035189414,19.02191548,4439.3,4439.2,0.0008]
[1758035190844,18.81193121,4439.3,4439.2,0.0008]
[1758035191136,19.02290128,4439.3,4439.2,0.0008]
[1758035191506,20.23418174,4439.3,4439.2,0.0008]
[1758035192134,19.02290128,4439.3,4439.2,0.0008]
[1758035194822,19.02298147,4439.3,4439.2,0.0008]
[1758035195224,14.44281464,4439.3,4439.2,0.0008]
[1758035195424,18.23081464,4439.3,4439.2,0.0008]
[1758035196242,17.01498147,4439.3,4439.2,0.0008]
[1758035196650,18.23081464,4439.3,4439.2,0.0008]
[1758035196977,17.30998147,4439.3,4439.2,0.0008]
[1758035197271,17.1052683,4439.3,4439.2,0.0008]
[1758035197439,17.8505683,4439.3,4439.2,0.0008]
[1758035197635,18.3197683,4439.3,4439.2,0.0008]
[1758035197822,19.1117683,4439.3,4439.2,0.0008]
[1758035198022,15.3237683,4439.3,4439.2,0.0008]
[1758035198222,19.1117683,4439.3,4439.2,0.0008]
[1758035199876,19.1109683,4439.3,4439.2,0.0008]
[1758035200027,18.98501534,4439.3,4439.2,0.0008]
[1758035200370,19.11169981,4439.3,4439.2,0.0008]
[1758035202661,18.64249981,4439.3,4439.2,0.0008]
[1758035202982,18.64249981,4439.3,4439.2,0.7681]
[1758035202983,6.36294104,4439.3,4439.2,0.7681]
[1758035203181,9.4122726,4439.3,4439.2,0.314]
[1758035203384,16.20108858,4439.3,4439.2,0.314]
[1758035203946,16.49608858,4439.3,4439.2,0.0008]
[1758035204585,16.94638858,4439.3,4439.2,0.0008]
[1758035204963,15.37634739,4439.3,4439.2,0.0008]
[1758035205588,19.16434739,4439.3,4439.2,0.0008]
[1758035205951,19.03766292,4439.3,4439.2,0.0008]
[1758035206165,19.16435061,4439.3,4439.2,0.0008]
[1758035206486,15.37635061,4439.3,4439.2,0.0008]
[1758035206686,19.16435061,4439.3,4439.2,0.0008]
[1758035207181,18.71405061,4439.3,4439.2,0.0008]
[1758035208005,18.41905061,4439.3,4439.2,0.0008]
[1758035208167,14.63105061,4439.3,4439.2,0.0008]
[1758035208359,18.41905061,4439.3,4439.2,0.0008]
[1758035208998,15.37635061,4439.3,4439.2,0.0008]
[1758035209292,20.84981072,4439.3,4439.2,0.0008]
[1758035211004,20.85003041,4439.3,4439.2,0.0008]
[1758035211163,14.46306281,4439.3,4439.2,0.0008]
[1758035211359,19.16438169,4439.3,4439.2,0.0008]
[1758035211564,19.16438169,4439.3,4439.1,0.001]
[1758035211565,6.15665813,4439.2,4439.1,0.001]
[1758035211889,9.78075975,4439.2,4439.1,0.001]
[1758035212066,10.07575975,4439.2,4439.1,0.001]
[1758035213998,9.62552214,4439.2,4439.1,0.001]
[1758035214400,10.07582214,4439.2,4439.1,0.001]
[1758035215699,9.73788961,4439.2,4439.1,0.001]
[1758035216005,10.53378097,4439.2,4439.1,0.001]
[1758035217388,2.25286113,4438.8,4438.7,0.001]
[1758035217589,15.24451101,4438.8,4438.7,0.001]
[1758035217827,16.28639831,4438.8,4438.7,0.001]
[1758035218191,16.59319831,4438.8,4438.7,0.001]
[1758035218391,17.07359831,4438.8,4438.7,0.001]
[1758035218591,19.26677662,4438.8,4438.7,0.001]
[1758035220421,20.91817945,4438.8,4438.7,0.001]
[1758035220814,19.27177662,4438.8,4438.7,0.001]
[1758035222332,19.27177662,4438.8,4438.7,0.0018]
[1758035223638,19.27177662,4438.8,4438.3,0.001]
[1758035223639,2.25306416,4438.4,4438.3,0.001]
[1758035223818,12.25772419,4437.9,4437.8,1e-08]
[1758035224134,2.25367348,4437.2,4437.1,0.01]
[1758035224290,16.31438157,4437.2,4437.1,0.01]
[1758035224486,16.57941066,4437.2,4437.1,0.01]
[1758035224729,18.53216345,4437.2,4437.1,0.01]
[1758035225142,18.53136345,4437.2,4437.1,0.01]
[1758035225503,18.64447971,4437.2,4437.1,0.01]
[1758035226108,18.56244516,4437.2,4437.1,0.01]
[1758035226330,7.75335727,4437.2,4437.1,0.304]
[1758035226534,9.86269693,4437.2,4437.1,0.7787]
[1758035226840,6.28586507,4437.2,4437.1,0.7787]
[1758035227008,6.28586507,4437.2,4437.1,0.304]
[1758035227208,15.80228187,4437.2,4437.1,0.7507]
[1758035227418,15.80228187,4437.2,4437.1,0.01]
[1758035227419,16.28627125,4437.2,4437.1,0.01]
[1758035227623,18.97954679,4437.2,4437.1,0.01]
[1758035227843,19.58643176,4437.2,4437.1,0.01]
[1758035228139,18.80783176,4437.2,4437.1,0.01]
[1758035228343,18.20094679,4437.2,4437.1,0.304]
[1758035228512,18.80783176,4437.2,4437.1,0.304]
[1758035229215,18.20094679,4437.2,4437.1,0.304]
[1758035229637,18.20094679,4437.2,4437.1,0.7507]
[1758035229817,16.28627125,4437.2,4437.1,0.304]
[1758035230145,17.18635622,4437.2,4437.1,0.01]
[1758035230445,17.49417125,4437.2,4437.1,0.01]
[1758035230609,17.28345128,4437.2,4437.1,0.01]
[1758035230942,17.6713192,4437.2,4437.1,0.01]
[1758035231119,13.60570303,4437.2,4437.1,0.01]
[1758035231320,19.81796733,4437.2,4437.1,0.01]
[1758035231521,19.33256733,4437.2,4437.1,0.01]
[1758035231746,18.72568236,4437.2,4437.1,0.01]
[1758035232114,18.43248236,4437.2,4437.1,0.01]
[1758035232363,20.00308236,4437.2,4437.1,0.01]
[1758035232569,20.00308236,4437.2,4437.1,0.0108]
[1758035234167,19.22448236,4437.2,4437.1,0.0108]
[1758035234580,18.43248236,4437.2,4437.1,0.3048]
[1758035235261,6.28528617,4437.2,4437.1,0.3048]
[1758035235460,5.59024653,4437.2,4437.1,0.7795]
[1758035235766,5.46381455,4437.2,4437.1,0.7795]
[1758035235952,5.25367348,4437.2,4437.1,0.7795]
[1758035236469,5.25367348,4437.2,4437.1,0.6795]
[1758035237176,6.21240618,4437.8,4437.1,0.6795]
[1758035237338,2.25367348,4437.2,4437.1,0.2048]
[1758035237539,1.14819714,4437.8,4437.1,0.2048]
[1758035237885,2.25343685,4437.7,4437.1,0.2048]
[1758035238037,0.48378159,4438.0,4437.2,0.44063007]
[1758035238382,2.25326723,4438.0,4437.9,0.294]
[1758035238674,2.25326723,4438.0,4437.9,0.6937]
[1758035239041,2.25326723,4438.0,4437.9,0.7217]
[1758035239587,5.25321657,4438.1,4437.9,0.7217]
[1758035239736,0.48389369,4438.5,4437.9,0.7217]
[1758035239950,2.25326723,4438.0,4437.9,0.7217]
[1758035240172,2.25326404,4438.1,4437.9,0.7217]
[1758035240374,2.25326404,4438.1,4438.0,0.4277]
[1758035240590,2.49142525,4438.1,4438.0,0.294]
[1758035241165,2.61745348,4438.1,4438.0,0.294]
[1758035241671,2.58929371,4438.1,4438.0,0.294]
[1758035241869,2.61745891,4438.1,4438.0,0.294]
[1758035242070,2.25345097,4437.7,4437.6,0.3997]
[1758035242389,2.25337679,4437.8,4437.6,0.7217]
[1758035242575,2.25337679,4437.8,4437.7,0.4277]
[1758035242777,0.48395389,4438.1,4437.7,0.4277]
[1758035242778,2.25331306,4438.0,4437.7,0.7225]
[1758035242978,2.25332823,4437.9,4437.7,0.7225]
[1758035243354,2.25336878,4437.8,4437.7,0.2948]
[1758035243959,2.25332924,4437.9,4437.7,0.2948]
[1758035244572,2.25332924,4437.9,4437.7,0.6945]
[1758035244773,2.2532619,4438.1,4437.8,0.4277]
[1758035245094,2.25325832,4438.1,4438.0,0.3093]
[1758035245280,2.25336878,4437.8,4437.7,0.0008]
[1758035245661,2.25336878,4437.8,4437.7,0.3101]
[1758035246396,2.25322729,4438.1,4437.7,0.7378]
[1758035246596,2.25322729,4438.1,4437.8,0.44062147]
[1758035246762,2.25322729,4438.1,4438.0,0.3093]
[1758035246962,5.25317108,4438.2,4438.0,0.3093]
[1758035247281,0.48399013,4438.3,4438.1,0.4277]
[1758035247282,5.25312803,4438.3,4438.1,0.4277]
[1758035247487,2.25503169,4438.5,4437.7,0.0008]
[1758035247488,0.112,4438.0,4437.7,0.0008]
[1758035247687,0.4952,4438.5,4437.7,0.0008]
[1758035247891,0.0281633,4438.4,4437.9,0.3093]
[1758035248087,2.25316758,4438.2,4437.9,0.3093]
[1758035248483,2.25321935,4438.1,4437.9,0.3093]
[1758035249205,2.25316639,4438.2,4437.9,0.709]
[1758035249371,2.25316639,4438.2,4438.0,0.3997]
[1758035249570,2.25311808,4438.3,4438.1,0.3093]
[1758035249884,2.25311808,4438.3,4438.0,0.3997]
[1758035249885,0.112,4438.0,4437.8,0.4277]
[1758035250092,0.112,4438.0,4437.9,0.44062118]
[1758035250299,2.25235652,4438.3,4437.9,0.74992118]
[1758035250463,0.03016266,4438.5,4438.0,0.4277]
[1758035250464,2.25504759,4438.5,4438.0,0.4277]
[1758035250670,2.25504759,4438.5,4438.4,0.3093]
[1758035250871,2.59109679,4438.5,4438.4,0.3093]
[1758035251214,2.25315946,4438.3,4437.8,0.4277]
[1758035251405,0.112,4438.1,4437.9,0.0129203]
[1758035251703,2.25315946,4438.3,4438.2,0.3093]
[1758035252002,2.25307477,4438.4,4438.2,0.3093]
[1758035252202,0.03016266,4438.5,4438.2,0.3093]
[1758035252203,2.25311493,4438.3,4438.2,0.3093]
[1758035253200,2.25311493,4438.3,4438.2,0.3101]
[1758035253906,2.55411493,4438.3,4438.2,0.0008]
[1758035254113,2.25311493,4438.3,4438.2,0.0008]
[1758035254402,2.25307565,4438.4,4438.2,0.3101]
[1758035254606,0.002,4438.5,4438.2,0.7098]
[1758035254808,2.25311493,4438.3,4438.2,0.3101]
[1758035255728,2.25311493,4438.3,4438.2,0.0008]
[1758035255729,9.26572528,4438.3,4438.2,0.0008]
[1758035255872,9.26572528,4438.3,4437.4,1.732]
[1758035255873,3.0,4438.2,4437.6,3.7134]
[1758035256072,2.25336878,4437.8,4437.6,3.7134]
[1758035256326,6.21240618,4437.9,4437.4,1.732]
[1758035256629,2.25334955,4437.9,4437.8,0.3093]
[1758035257124,2.25347034,4437.6,4437.5,3.787]
[1758035257325,2.25342638,4437.7,4437.5,4.0963]
[1758035257510,2.2533843,4437.8,4437.5,4.0963]
[1758035258811,2.2533843,4437.8,4437.6,3.787]
[1758035259322,2.25332534,4437.9,4437.7,0.3093]
[1758035259686,0.02816584,4438.0,4437.7,0.3093]
[1758035259687,2.25328184,4438.0,4437.7,0.3093]
[1758035259887,3.71064761,4438.3,4437.8,0.41262196]
[1758035259888,0.48358803,4438.3,4437.8,0.41262196]
[1758035260101,0.002,4438.5,4438.2,0.3093]
[1758035260286,2.59094676,4438.5,4438.3,3.79991562]
[1758035260509,2.25306416,4438.4,4438.3,3.79991562]
[1758035260699,2.25306416,4438.4,4438.3,4.10921562]
[1758035261595,0.002,4438.5,4438.3,4.10921562]
[1758035262105,2.25306416,4438.4,4438.3,4.10921562]
[1758035262306,2.25306416,4438.4,4438.3,4.0963]
[1758035262510,2.25306416,4438.4,4438.3,3.787]
[1758035262824,2.2532909,4438.0,4437.4,1.732]
[1758035262994,2.2532909,4438.0,4437.5,3.787]
[1758035263320,0.002,4438.5,4437.9,0.3093]
[1758035263489,2.25310461,4438.4,4438.0,3.79991796]
[1758035263691,2.25310461,4438.4,4438.3,0.3093]
[1758035263887,0.002,4438.5,4438.3,0.3093]
[1758035264184,2.2550247,4438.5,4438.3,0.3093]
[1758035264411,0.21011207,4438.4,4438.3,0.3093]
[1758035264625,2.2550247,4438.5,4438.3,0.3093]
[1758035264922,0.002,4438.5,4438.3,0.3093]
[1758035265624,0.3383617,4438.5,4438.3,0.3093]
[1758035265925,0.114,4438.5,4438.3,0.3093]
[1758035266684,2.25306416,4438.4,4438.3,0.3093]
[1758035266891,2.58966189,4438.4,4438.3,0.3093]
[1758035267126,0.21038893,4438.4,4438.3,0.3093]
[1758035267422,0.33665693,4438.4,4438.3,0.3093]
[1758035267621,0.114,4438.5,4438.3,0.3093]
[1758035267831,0.114,4438.5,4438.4,3.787]
[1758035267990,0.114,4438.5,4438.4,4.0963]
[1758035268792,0.114,4438.5,4438.4,4.496]
[1758035269004,0.114,4438.5,4438.4,4.524]
[1758035269406,0.002,4438.5,4438.4,7.62797966]
[1758035269613,0.002,4438.5,4438.4,8.41997966]
[1758035269808,0.002,4438.7,4438.6,3.0]
[1758035270046,0.012,4438.9,4438.8,6.04486113]
[1758035270276,0.012,4438.9,4438.8,11.74785038]
[1758035270569,0.012,4438.9,4438.8,12.17155038]
[1758035270772,0.012,4438.9,4438.8,26.67155038]
[1758035271845,1e-08,4438.9,4438.8,26.67155038]
[1758035272547,0.0004,4439.3,4439.2,6.04465813]
[1758035272790,0.0004,4439.3,4439.2,18.60480341]
[1758035272959,0.0004,4439.3,4439.2,19.33780341]
[1758035273155,0.0004,4439.3,4439.2,33.83780341]
[1758035273981,0.0004,4439.3,4439.2,33.83860341]
[1758035274887,0.01,4439.9,4439.4,2.25255665]
[1758035275202,1e-08,4439.9,4439.8,12.25675988]
[1758035275369,0.002,4440.2,4440.1,3.04420152]
[1758035275370,0.00120001,4440.2,4440.1,3.04420152]
[1758035275570,0.00120001,4440.2,4440.1,26.0770943]
[1758035275896,0.00120001,4440.2,4440.1,27.77441702]
[1758035278270,0.002,4441.2,4440.7,6.04389722]
[1758035278497,0.002,4441.2,4440.7,16.4825838]
[1758035278803,0.002,4441.2,4440.7,6.79977762]
[1758035279017,0.002,4441.2,4440.7,25.09177762]
[1758035279217,0.002,4441.2,4440.7,26.58646687]
[1758035279382,0.002,4441.2,4440.7,27.01016687]
[1758035279781,0.002,4441.2,4440.7,32.17622416]
[1758035280326,0.002,4441.2,4440.7,27.96052416]
[1758035280489,0.002,4441.2,4440.7,31.87652416]
[1758035280806,1.3715,4440.8,4440.7,16.6712804]
[1758035281109,1.3715,4440.8,4440.7,5.9662804]
[1758035281333,0.4208,4440.8,4440.7,5.526]
[1758035281537,0.8977,4440.8,4440.7,5.526]
[1758035281722,1.3715,4440.8,4440.7,5.526]
[1758035283018,1.3715,4440.8,4440.7,7.77789722]
[1758035283212,0.8977,4440.8,4440.7,5.526]
[1758035284140,0.8977,4440.8,4440.7,7.77789722]
[1758035284541,0.8977,4440.8,4440.7,7.77869722]
[1758035285341,0.12,4440.8,4440.7,10.28675603]
[1758035285546,0.12,4440.8,4440.7,10.39875603]
[1758035287112,0.12,4440.8,4440.7,10.10865603]
[1758035287526,0.12,4440.8,4440.7,10.39875603]
[1758035287935,0.12,4440.8,4440.7,14.50245603]
[1758035288334,0.12,4440.8,4440.7,14.62245603]
[1758035288627,0.12,4440.8,4440.7,29.12245603]
[1758035289521,0.12,4440.8,4440.7,29.09445603]
[1758035290036,0.12,4440.8,4440.7,28.70175603]
[1758035290749,0.12,4440.8,4440.7,29.12545603]
[1758035291876,0.12,4440.8,4440.7,29.09745603]
[1758035292964,1e-08,4440.8,4440.7,29.12545603]
[1758035293719,1e-08,4440.8,4440.7,32.95175603]
[1758035295156,1e-08,4440.8,4440.7,33.37545603]
[1758035297125,1e-08,4440.8,4440.7,29.12545603]
[1758035297755,1e-08,4440.8,4440.7,28.70175603]
[1758035297963,1e-08,4440.8,4440.7,28.81375603]
[1758035298372,1e-08,4440.8,4440.7,29.23745603]
[1758035298526,0.00200001,4440.8,4440.7,29.23745603]
[1758035299434,0.00200001,4440.8,4440.7,29.20945603]
[1758035300033,0.00200001,4440.8,4440.7,29.23745603]
[1758035300877,0.00120001,4440.8,4440.7,29.23745603]
[1758035301278,1e-08,4441.9,4441.5,3.792]
[1758035301442,1e-08,4441.9,4441.8,21.78322425]
[1758035301643,1e-08,4441.9,4441.8,25.87032425]
[1758035301966,1e-08,4441.9,4441.8,40.79402425]
[1758035302276,0.002,4443.2,4442.2,0.792]
[1758035302479,0.002,4443.2,4442.8,3.0428328]
[1758035302655,0.002,4443.2,4442.8,11.87179136]
[1758035302856,0.002,4443.2,4442.8,26.3589328]
[1758035303058,0.002,4443.2,4442.9,0.792]
[1758035303260,0.002,4443.2,4443.1,6.04268083]
[1758035303796,0.002,4443.2,4443.1,6.33278083]
[1758035304957,0.002,4443.2,4443.1,20.83278083]
[1758035306195,0.002,4443.2,4443.1,20.54268083]
[1758035306397,0.3014,4443.2,4443.1,25.75893424]
[1758035306603,0.3014,4443.2,4443.1,26.34173424]
[1758035307554,1.2401,4443.2,4443.1,26.34173424]
[1758035308759,1.2401,4443.2,4443.1,15.54266837]
[1758035309113,1.2401,4443.2,4443.1,3.801]
[1758035309807,3.49073017,4443.2,4443.1,3.801]
[1758035310008,1.2401,4443.2,4443.1,3.801]
[1758035310818,1.2401,4443.2,4443.0,1.73]
[1758035310966,3.31339083,4443.1,4443.0,1.73]
[1758035311170,3.31339083,4443.1,4443.0,5.531]
[1758035311171,1.36211,4443.1,4443.0,5.531]
[1758035311368,3.61279083,4443.1,4443.0,5.531]
[1758035311890,3.61279083,4443.1,4443.0,5.5318]
[1758035312398,1.36211,4443.1,4443.0,5.5318]
[1758035312569,1.2381,4443.1,4443.0,5.5318]
[1758035314022,3.48878083,4443.1,4443.0,1.7308]
[1758035314162,3.82387938,4443.1,4443.0,0.0008]
[1758035314364,7.33619134,4443.1,4443.0,0.0008]
[1758035314594,9.73546799,4443.1,4443.0,0.0008]
[1758035314975,10.53964809,4443.1,4443.0,0.0008]
[1758035315200,9.73551427,4443.1,4443.0,0.0008]
[1758035315419,10.53969437,4443.1,4443.0,0.0008]
[1758035316217,9.73551427,4443.1,4443.0,0.0008]
[1758035316541,7.51755546,4443.1,4443.0,0.0008]
[1758035320132,7.30806145,4443.1,4443.0,0.0008]
[1758035320333,8.12127452,4443.1,4443.0,0.0008]
[1758035320915,7.51767026,4443.1,4443.0,0.0008]
[1758035321149,8.32185036,4443.1,4443.0,0.0008]
[1758035321435,9.73562907,4443.1,4443.0,0.0008]
[1758035321953,2.2515423,4441.4,4441.3,1.73]
[1758035322102,3.4896423,4441.4,4441.3,1.7308]
[1758035323425,3.4896423,4441.4,4441.3,0.0008]
[1758035323766,4.06375185,4441.4,4441.3,0.0008]
[1758035325218,7.39868519,4441.4,4441.3,0.0008]
[1758035325830,7.39788519,4441.4,4441.3,0.0008]
[1758035326227,7.27228519,4441.4,4441.3,0.0008]
[1758035327158,7.06295185,4441.4,4441.3,0.0008]
[1758035327640,0.2994,4441.4,4441.3,0.0008]
[1758035327844,3.4896423,4441.4,4441.3,0.0008]
[1758035331875,0.4779,4442.2,4441.3,0.2964]
[1758035332032,2.2511875,4442.1,4441.4,3.21487337]
[1758035332233,2.2511875,4442.1,4441.5,0.4892]
[1758035332434,2.2511875,4442.1,4441.6,0.0128723]
[1758035332860,2.25136265,4441.8,4441.6,0.0128723]
[1758035333348,2.25136265,4441.8,4441.7,0.2956]
[1758035333558,0.02814047,4442.0,4441.5,0.01287279]
[1758035333764,2.251431,4441.7,4441.5,0.01287279]
[1758035333974,2.25131667,4441.9,4441.5,0.01287279]
[1758035334172,0.02813984,4442.1,4441.6,0.2956]
[1758035334469,2.25073148,4443.0,4441.9,2.25128873]
[1758035334672,0.03013287,4443.2,4442.0,0.86156479]
[1758035334858,0.002,4443.2,4442.9,0.2866]
[1758035335061,0.002,4443.2,4442.9,4.0966]
[1758035335276,0.002,4443.2,4443.0,0.01285603]
[1758035335961,2.25264136,4443.2,4443.0,0.01285603]
[1758035336164,0.002,4443.2,4443.0,0.01285603]
[1758035336538,0.112,4443.0,4442.9,3.81]
[1758035336737,0.112,4443.0,4442.9,4.0966]
[1758035338174,2.36273148,4443.0,4442.9,3.81]
[1758035338685,0.112,4443.0,4442.9,3.81]
[1758035339383,0.112,4443.0,4442.9,4.0966]
[1758035339582,0.112,4443.0,4442.9,3.81]
[1758035339963,2.36273148,4443.0,4442.9,3.81]
[1758035340352,0.112,4443.0,4442.9,4.1203]
[1758035341292,2.36273148,4443.0,4442.9,4.1203]
[1758035341795,0.112,4443.0,4442.9,4.1203]
[1758035341999,0.112,4443.0,4442.9,3.78287957]
[1758035342482,0.112,4443.0,4442.9,3.78367957]
[1758035344588,2.36273148,4443.0,4442.9,3.47337957]
[1758035344801,0.112,4443.0,4442.9,3.47337957]
[1758035345388,0.112,4443.0,4442.9,3.78367957]
[1758035345593,0.002,4443.2,4442.9,5.25804329]
[1758035345827,0.002,4443.2,4443.0,0.01285603]
[1758035346392,0.002,4443.2,4442.9,3.47337957]
[1758035346393,0.3104,4443.1,4442.9,3.47337957]
[1758035346585,3.12638631,4443.1,4442.9,3.47337957]
[1758035346906,0.4224,4443.1,4443.0,0.01285652]
[1758035347202,0.002,4443.2,4443.0,1.19695652]
[1758035347415,0.002,4443.2,4443.1,0.4781]
[1758035348014,0.002,4443.2,4443.1,0.7884]
[1758035348989,0.002,4443.2,4443.1,0.3103]
[1758035349318,0.002,4443.2,4443.1,0.32315476]
[1758035349724,0.002,4443.2,4443.1,0.3103]
[1758035349899,0.3124,4443.2,4442.9,3.47337957]
[1758035350096,2.5630358,4443.2,4442.9,3.47337957]